bitfinex-derivatives/quotes_SOLF0:USTF0_20250904
["timestamp","ask_amount","ask_price","bid_price","bid_amount"]
[1757016011308,0.03,202.25,202.21,0.03519801]
[1757016011910,4.93221349,202.26,202.21,0.03519801]
[1757016012114,0.03554758,202.27,202.21,0.03519801]
[1757016012115,4.93221349,202.23,202.21,0.03519801]
[1757016012315,0.03,202.22,202.12,7.85]
[1757016012710,4.93221349,202.17,202.03,7.85]
[1757016012909,4.96221349,202.19,202.03,7.85]
[1757016013210,4.96221349,202.19,202.06,7.85]
[1757016013412,0.0321521,202.13,202.06,7.85]
[1757016015725,0.03,202.12,201.98,7.85]
[1757016016414,0.03349308,202.07,201.98,7.85]
[1757016018013,4.96570657,202.07,201.98,7.85]
[1757016018615,4.93221349,202.04,201.92,8.04]
[1757016019212,0.03389611,202.0,201.92,8.04]
[1757016022916,4.93221349,202.1,201.94,8.04]
[1757016023724,4.93221349,202.1,201.95,8.04]
[1757016025218,0.04,202.11,201.97,8.04]
[1757016027119,4.93221349,202.14,201.99,4.93221349]
[1757016027325,0.07,202.15,202.0,8.04]
[1757016027619,4.93221349,202.17,202.02,4.93221349]
[1757016027825,4.93221349,202.17,202.03,8.04]
[1757016029026,5.00221349,202.19,202.03,8.04]
[1757016029425,5.00221349,202.19,202.04,8.04]
[1757016031322,5.00221349,202.19,202.05,8.04]
[1757016034524,0.07,202.19,202.05,4.93221349]
[1757016034731,0.06,202.23,202.08,4.93221349]
[1757016035029,0.06,202.28,202.12,8.04]
[1757016035226,0.06,202.28,202.15,8.04]
[1757016035528,0.06,202.34,202.18,8.04]
[1757016035723,0.06,202.34,202.21,4.93221349]
[1757016035928,0.06,202.34,202.22,8.04]
[1757016036332,0.06,202.34,202.22,62.12]
[1757016036532,0.06,202.34,202.23,8.04]
[1757016038633,4.93221349,202.33,202.23,8.04]
[1757016038834,0.06,202.34,202.23,8.04]
[1757016040436,128.99221349,202.39,202.23,8.04]
[1757016040629,128.99221349,202.39,202.24,8.04]
[1757016040935,4.99221349,202.39,202.24,12.97221349]
[1757016041135,0.06,202.39,202.25,8.04]
[1757016041330,0.06,202.39,202.28,8.04]
[1757016044036,318.66,202.51,202.38,4.93221349]
[1757016044237,0.06,202.58,202.47,8.04]
[1757016044740,0.06,202.58,202.48,4.93221349]
[1757016044938,0.91941841,202.63,202.49,8.04]
[1757016045140,0.91941841,202.63,202.52,8.04]
[1757016045443,0.91941841,202.63,202.54,4.93221349]
[1757016045742,52.02,202.67,202.55,8.04]
[1757016046143,52.02,202.67,202.57,4.93221349]
[1757016046443,0.06,202.68,202.58,8.04]
[1757016046644,0.06,202.73,202.61,8.04]
[1757016046843,124.0,202.77,202.63,4.93221349]
[1757016047140,318.52,202.82,202.67,8.04]
[1757016047141,130.34,202.81,202.67,8.04]
[1757016047348,318.58,202.82,202.68,4.93221349]
[1757016047540,442.58,202.82,202.71,4.93221349]
[1757016047742,318.58,202.82,202.71,4.93221349]
[1757016047943,0.06,202.82,202.71,4.93221349]
[1757016048238,0.06,202.9,202.81,4.93221349]
[1757016048440,0.06,202.9,202.81,7.63]
[1757016048739,318.4,202.94,202.83,4.93221349]
[1757016048944,4.93221349,203.03,202.85,12.56221349]
[1757016049146,6.45221349,203.02,202.85,7.63]
[1757016049447,126.31784012,203.01,202.85,7.63]
[1757016049642,0.06,203.0,202.83,4.93221349]
[1757016049844,4.93221349,202.98,202.79,7.63]
[1757016050044,0.06,202.97,202.79,7.63]
[1757016050245,0.06,202.94,202.79,7.63]
[1757016050643,0.06,202.94,202.81,4.93221349]
[1757016050843,0.06,202.94,202.8,4.93221349]
[1757016051049,29.12,202.96,202.85,7.63]
[1757016051248,0.06,202.99,202.85,7.63]
[1757016051551,0.85794586,202.99,202.87,7.63]
[1757016051748,0.06,203.0,202.87,7.63]
[1757016052054,0.06,203.0,202.87,12.56221349]
[1757016052242,4.99221349,203.0,202.87,7.63]
[1757016052445,4.99221349,203.0,202.81,68.52]
[1757016052446,4.93221349,202.99,202.78,7.63]
[1757016052740,4.93221349,202.99,202.77,318.16]
[1757016052741,0.06,202.98,202.82,7.63]
[1757016053447,0.06,202.94,202.82,7.63]
[1757016054341,0.06,202.94,202.77,323.09221349]
[1757016054342,0.06,202.94,202.77,325.79]
[1757016054544,4.99221349,202.94,202.78,7.63]
[1757016055350,0.06,202.94,202.8,7.63]
[1757016055853,4.93221349,202.92,202.8,7.63]
[1757016056652,4.93221349,202.89,202.71,7.63]
[1757016056857,4.93221349,202.92,202.71,7.63]
[1757016056858,4.93221349,202.85,202.71,7.63]
[1757016057455,4.93221349,202.82,202.71,7.63]
[1757016058658,0.06,202.81,202.71,7.63]
[1757016058960,4.93221349,202.79,202.71,7.63]
[1757016059164,4.93221349,202.79,202.65,7.63]
[1757016059663,0.06,202.81,202.67,7.63]
[1757016059959,4.99221349,202.81,202.67,7.63]
[1757016060462,4.93221349,202.75,202.62,7.63]
[1757016060851,0.06,202.77,202.62,7.63]
[1757016061156,4.93221349,202.81,202.65,7.63]
[1757016061754,4.93221349,202.78,202.65,7.63]
[1757016062658,4.99221349,202.75,202.65,7.63]
[1757016062860,0.06,202.71,202.55,4.93221349]
[1757016063061,0.06,202.71,202.56,7.63]
[1757016063859,124.06,202.71,202.56,7.63]
[1757016064362,0.06,202.71,202.58,7.63]
[1757016064570,4.93221349,202.7,202.58,7.63]
[1757016064858,0.06,202.71,202.58,7.63]
[1757016065061,4.93221349,202.68,202.58,7.63]
[1757016065463,7.98501472,202.7,202.58,7.63]
[1757016067761,0.04,202.69,202.52,7.63]
[1757016067964,0.04,202.65,202.52,7.63]
[1757016069271,0.04,202.65,202.43,7.63]
[1757016069467,0.04,202.61,202.43,7.63]
[1757016070667,0.04,202.66,202.47,7.63]
[1757016070869,2.26,202.66,202.47,7.63]
[1757016071066,8.02501472,202.65,202.47,7.63]
[1757016071270,4.72,202.64,202.47,7.63]
[1757016071471,8.02501472,202.65,202.47,7.63]
[1757016071669,6.74,202.64,202.47,7.63]
[1757016071863,8.02501472,202.65,202.47,7.63]
[1757016072068,4.24,202.65,202.47,7.63]
[1757016072470,0.04,202.64,202.47,7.63]
[1757016072868,2.8,202.64,202.47,7.63]
[1757016073071,0.04,202.64,202.47,7.63]
[1757016073465,0.04,202.74,202.51,7.98501472]
[1757016073670,133.12,202.73,202.52,7.63]
[1757016074068,0.04,202.74,202.52,7.63]
[1757016074269,133.18,202.72,202.52,7.63]
[1757016074469,133.12,202.72,202.56,7.63]
[1757016074875,133.1,202.73,202.56,7.63]
[1757016075170,0.04,202.72,202.56,7.63]
[1757016076268,8.02501472,202.72,202.56,7.63]
[1757016076775,110.18,202.71,202.56,7.63]
[1757016077179,8.02501472,202.72,202.56,7.63]
[1757016077372,109.78,202.71,202.56,7.63]
[1757016078272,0.04,202.72,202.56,7.63]
[1757016078474,8.00501472,202.72,202.56,7.63]
[1757016079178,140.80501472,202.72,202.56,7.63]
[1757016079376,140.80501472,202.72,202.62,0.03373095]
[1757016079575,140.78501472,202.72,202.62,0.03373095]
[1757016079773,0.02,202.79,202.63,7.44]
[1757016080076,451.9,202.78,202.63,7.44]
[1757016080374,317.82,202.78,202.63,7.44]
[1757016080679,134.1,202.77,202.63,7.44]
[1757016080880,317.82,202.78,202.63,7.44]
[1757016081077,0.02,202.77,202.63,7.44]
[1757016081277,134.02,202.76,202.63,7.44]
[1757016081473,134.0,202.75,202.63,7.44]
[1757016081673,133.98,202.74,202.63,7.44]
[1757016081879,124.02,202.77,202.63,7.44]
[1757016082281,133.9,202.76,202.63,7.44]
[1757016082580,133.9,202.75,202.63,7.44]
[1757016082780,0.02,202.74,202.63,7.44]
[1757016082981,133.86,202.73,202.63,7.44]
[1757016083281,133.8,202.72,202.63,7.44]
[1757016084580,0.02,202.74,202.63,7.44]
[1757016084883,133.62,202.73,202.63,7.44]
[1757016085077,133.62,202.73,202.54,7.44]
[1757016085381,131.98501472,202.72,202.54,7.44]
[1757016085678,0.02,202.71,202.54,7.44]
[1757016085877,108.98,202.7,202.54,7.44]
[1757016086073,0.02,202.71,202.54,7.44]
[1757016086276,124.0,202.7,202.54,7.44]
[1757016086472,78.56,202.69,202.54,7.44]
[1757016086880,124.0,202.7,202.54,7.44]
[1757016087276,133.4,202.69,202.54,7.44]
[1757016087476,133.42,202.68,202.55,4.443]
[1757016087684,0.02,202.71,202.56,7.44]
[1757016087978,77.9,202.7,202.58,7.44]
[1757016088584,133.4,202.69,202.58,7.44]
[1757016088780,133.32,202.69,202.58,7.44]
[1757016089485,0.02,202.68,202.52,7.44]
[1757016089683,0.02,202.67,202.52,7.44]
[1757016089985,124.0,202.66,202.52,7.44]
[1757016090180,120.3,202.65,202.52,7.44]
[1757016090385,116.18,202.64,202.52,7.44]
[1757016090577,0.02,202.67,202.52,7.44]
[1757016090783,112.26,202.66,202.52,7.44]
[1757016091687,108.54,202.65,202.52,7.44]
[1757016091886,104.98,202.65,202.52,7.44]
[1757016092089,0.02,202.67,202.54,7.44]
[1757016092590,104.64,202.67,202.54,7.44]
[1757016092987,0.02,202.67,202.54,7.44]
[1757016093190,132.96,202.66,202.54,7.44]
[1757016093490,132.92,202.65,202.54,7.44]
[1757016093792,0.02,202.64,202.54,7.44]
[1757016094389,132.84,202.64,202.54,7.44]
[1757016094886,0.02,202.63,202.46,7.44]
[1757016095092,32.12,202.62,202.46,7.44]
[1757016095688,0.02,202.63,202.46,7.44]
[1757016096090,0.02,202.63,202.5,7.44]
[1757016096289,75.76,202.63,202.5,7.44]
[1757016096487,0.02,202.63,202.5,7.44]
[1757016096689,75.56,202.62,202.5,7.44]
[1757016096995,0.02,202.63,202.5,7.44]
[1757016097194,75.26,202.62,202.5,7.44]
[1757016097589,96.96,202.62,202.5,7.44]
[1757016097789,0.02,202.63,202.5,7.44]
[1757016098191,74.72,202.62,202.5,7.44]
[1757016098489,96.26,202.62,202.5,7.44]
[1757016098693,116.64,202.62,202.5,7.44]
[1757016098895,0.02,202.63,202.5,7.44]
[1757016099099,74.22,202.63,202.5,7.44]
[1757016099594,0.02,202.63,202.5,7.44]
[1757016100097,73.68,202.63,202.5,7.44]
[1757016100295,0.02,202.63,202.5,7.44]
[1757016100496,73.48,202.63,202.5,7.44]
[1757016100691,132.2,202.63,202.5,7.44]
[1757016101592,132.1,202.63,202.51,7.44]
[1757016101797,0.02,202.63,202.51,7.44]
[1757016102296,132.04,202.63,202.51,7.44]
[1757016102603,0.02,202.63,202.52,7.44]
[1757016102896,0.02,202.63,202.53,7.44]
[1757016103298,7.98501472,202.72,202.53,7.44]
[1757016103501,0.02,202.71,202.54,7.44]
[1757016103696,99.22,202.7,202.54,4.06332462]
[1757016103893,99.22,202.7,202.57,15.42501472]
[1757016104101,131.88,202.7,202.57,15.42501472]
[1757016105002,131.84,202.69,202.57,15.42501472]
[1757016106199,131.64,202.7,202.57,15.42501472]
[1757016106404,0.02,202.71,202.57,15.42501472]
[1757016106900,0.02,202.71,202.58,11.50332462]
[1757016107100,100.14,202.71,202.59,7.44]
[1757016107301,0.02,202.71,202.59,7.44]
[1757016108397,0.02,202.71,202.62,7.45]
[1757016110302,0.05,202.78,202.62,7.45]
[1757016110507,5.07,202.78,202.62,7.45]
[1757016110807,0.05,202.77,202.62,7.45]
[1757016111012,5.02,202.78,202.62,7.45]
[1757016111013,10.25432152,202.78,202.62,7.45]
[1757016111206,0.05,202.77,202.62,7.45]
[1757016111709,0.05,202.75,202.62,7.45]
[1757016111905,96.72,202.74,202.62,7.45]
[1757016112106,131.26,202.74,202.62,7.45]
[1757016112301,0.05,202.75,202.62,7.45]
[1757016112505,94.69,202.75,202.62,7.45]
[1757016112701,131.25,202.75,202.62,7.45]
[1757016113503,0.05,202.74,202.62,7.45]
[1757016113703,139.18501472,202.75,202.58,15.43501472]
[1757016113910,139.18501472,202.75,202.58,7.45]
[1757016114311,0.05,202.74,202.58,7.45]
[1757016115013,33.08,202.73,202.58,7.45]
[1757016115212,0.05,202.74,202.58,7.45]
[1757016115412,0.05,202.71,202.58,7.45]
[1757016115813,0.05,202.76,202.58,7.98501472]
[1757016116009,48.4,202.74,202.59,7.45]
[1757016116214,0.05,202.76,202.63,7.45]
[1757016118112,0.05,202.76,202.63,11.891]
[1757016118314,0.05,202.76,202.64,7.45]
[1757016118608,97.68,202.8,202.66,7.98501472]
[1757016118805,97.73,202.8,202.67,7.45]
[1757016119310,0.05,202.8,202.67,7.45]
[1757016120214,317.9,202.84,202.67,7.45]
[1757016120215,130.82,202.81,202.67,7.45]
[1757016120511,0.05,202.8,202.67,7.45]
[1757016120916,130.72,202.79,202.67,7.45]
[1757016121313,0.05,202.8,202.67,7.45]
[1757016121516,93.4,202.79,202.67,7.45]
[1757016122016,0.05,202.8,202.67,7.45]
[1757016122218,0.05,202.78,202.67,7.45]
[1757016122618,91.4,202.79,202.61,4.06332462]
[1757016122818,114.79,202.78,202.62,7.45]
[1757016123014,0.05,202.78,202.64,7.98501472]
[1757016123218,0.05,202.78,202.65,7.45]
[1757016123819,91.07,202.78,202.65,7.45]
[1757016124717,91.02,202.78,202.65,7.45]
[1757016125016,0.05,202.77,202.65,7.45]
[1757016125214,0.05,202.77,202.6,7.45]
[1757016125422,7.98501472,202.75,202.6,7.45]
[1757016125611,0.05,202.72,202.6,7.45]
[1757016126215,0.05,202.69,202.6,7.45]
[1757016126416,25.43,202.69,202.56,7.45]
[1757016126715,25.38,202.69,202.56,7.45]
[1757016126918,0.05,202.66,202.56,7.45]
[1757016127718,10.03,202.66,202.56,7.45]
[1757016128411,0.05,202.66,202.56,7.45]
[1757016129218,14.7,202.65,202.56,7.45]
[1757016129418,23.88,202.65,202.56,7.45]
[1757016130922,0.05,202.63,202.51,7.45]
[1757016131117,4.91165992,202.61,202.51,7.45]
[1757016131321,0.05,202.6,202.47,7.45]
[1757016132120,69.09,202.6,202.47,7.45]
[1757016132920,129.82,202.59,202.47,7.45]
[1757016133424,0.05,202.6,202.47,7.45]
[1757016133625,68.17,202.6,202.47,7.45]
[1757016134127,129.74,202.59,202.47,7.45]
[1757016134425,0.05,202.6,202.47,7.45]
[1757016135125,67.13,202.6,202.47,7.45]
[1757016135427,129.59,202.6,202.47,7.45]
[1757016137030,129.67,202.6,202.47,7.45]
[1757016137326,129.51,202.6,202.47,7.45]
[1757016137524,4.91165992,202.64,202.5,7.45]
[1757016137732,0.05,202.63,202.5,7.45]
[1757016138027,65.19,202.63,202.5,7.45]
[1757016138228,0.05,202.63,202.5,7.45]
[1757016138422,127.21,202.63,202.5,7.45]
[1757016138925,0.05,202.63,202.5,7.45]
[1757016140931,0.08,202.61,202.5,7.45]
[1757016141931,62.38,202.61,202.5,7.45]
[1757016142131,121.28,202.61,202.5,7.45]
[1757016142530,4.91165992,202.59,202.5,7.45]
[1757016142929,0.08,202.58,202.43,7.79]
[1757016144125,0.08,202.58,202.46,7.79]
[1757016145131,34.78,202.58,202.46,7.79]
[1757016146634,332.72,202.69,202.42,91.04]
[1757016146635,4.99165992,202.62,202.49,7.79]
[1757016146829,0.08,202.62,202.51,4.91165992]
[1757016147029,0.08,202.62,202.52,7.79]
[1757016152630,54.56,202.64,202.52,7.79]
[1757016153326,0.08,202.66,202.54,4.91165992]
[1757016153531,0.08,202.66,202.55,7.79]
[1757016155630,133.29165992,202.68,202.55,7.79]
[1757016155832,0.08,202.64,202.55,7.79]
[1757016156730,0.08,202.64,202.51,7.79]
[1757016157232,56.12,202.63,202.51,7.79]
[1757016157440,0.08,202.62,202.51,7.79]
[1757016157738,108.36,202.61,202.51,7.79]
[1757016159243,128.12,202.61,202.51,7.79]
[1757016160242,0.08,202.62,202.53,7.79]
[1757016160441,128.08,202.66,202.53,7.79]
[1757016160638,0.08,202.67,202.56,7.79]
[1757016160842,128.08,202.67,202.56,7.79]
[1757016161043,0.08,202.66,202.56,7.79]
[1757016161239,128.04,202.66,202.56,7.79]
[1757016163044,0.08,202.66,202.56,7.79]
[1757016163244,54.34,202.66,202.56,7.79]
[1757016163844,0.08,202.66,202.56,7.79]
[1757016164047,105.64,202.66,202.56,7.79]
[1757016165545,105.56,202.66,202.56,7.79]
[1757016165746,0.08,202.65,202.56,7.79]
[1757016167551,1.96560988,202.63,202.57,1.96560988]
[1757016168053,0.08,202.65,202.59,9.74560988]
[1757016169847,1.96560988,202.66,202.59,9.74560988]
[1757016170051,1.96560988,202.67,202.59,9.74560988]
[1757016170851,1.96560988,202.67,202.61,1.96560988]
[1757016171051,127.42,202.68,202.61,1.96560988]
[1757016172251,1.96560988,202.67,202.61,1.96560988]
[1757016173050,127.42,202.68,202.61,1.96560988]
[1757016173253,2.01560988,202.66,202.61,9.74560988]
[1757016174453,0.05,202.66,202.61,9.74560988]
[1757016174658,1.96560988,202.67,202.62,7.78]
[1757016174959,129.15560988,202.7,202.63,1.96560988]
[1757016175353,129.10560988,202.7,202.65,1.96560988]
[1757016175552,1.96560988,202.72,202.66,7.78]
[1757016176558,1.96560988,202.72,202.67,1.96560988]
[1757016176759,129.09560988,202.74,202.67,9.74560988]
[1757016177656,2.01560988,202.74,202.67,9.74560988]
[1757016177854,129.01560988,202.74,202.67,9.74560988]
[1757016178658,129.01560988,202.74,202.67,7.78]
[1757016178958,128.93560988,202.74,202.67,9.74560988]
[1757016180162,128.93560988,202.74,202.67,7.78]
[1757016180362,2.01560988,202.72,202.67,7.78]
[1757016180558,0.05,202.72,202.66,1.96560988]
[1757016181364,126.82,202.74,202.56,4.4426]
[1757016181365,1.96560988,202.67,202.6,1.96560988]
[1757016181558,1.96560988,202.67,202.62,1.96560988]
[1757016181765,9.18,202.72,202.66,9.74560988]
[1757016181963,0.05,202.74,202.66,9.74560988]
[1757016182164,0.05,202.74,202.68,1.96560988]
[1757016183467,5.23432152,202.79,202.68,1.96560988]
[1757016183662,2.01560988,202.78,202.72,1.96560988]
[1757016184260,0.05,202.78,202.72,1.96560988]
[1757016184465,5.23432152,202.82,202.74,1.96560988]
[1757016184466,128.58560988,202.8,202.74,1.96560988]
[1757016184660,2.01560988,202.82,202.76,1.96560988]
[1757016184966,126.67,202.82,202.76,1.96560988]
[1757016185166,317.92,202.84,202.78,1.96560988]
[1757016185666,317.92,202.84,202.77,7.78]
[1757016185868,317.92,202.84,202.8,7.78]
[1757016186258,317.92,202.84,202.8,9.74560988]
[1757016186663,317.92,202.84,202.8,1.96560988]
[1757016186964,126.5,202.86,202.69,4.06332462]
[1757016187264,126.5,202.86,202.83,7.78]
[1757016188267,0.05,202.9,202.83,7.78]
[1757016188468,126.48,202.89,202.83,7.78]
[1757016189165,0.05,202.9,202.83,7.78]
[1757016191773,0.05,202.9,202.76,7.78]
[1757016193967,126.1,202.89,202.76,7.78]
[1757016194271,126.08,202.89,202.76,7.78]
[1757016194873,126.11,202.9,202.76,7.78]
[1757016195577,0.05,202.9,202.76,7.78]
[1757016195873,126.07,202.9,202.76,7.78]
[1757016200081,0.07,202.89,202.76,7.78]
[1757016202576,126.02,202.9,202.76,7.78]
[1757016203080,0.07,202.89,202.76,7.78]
[1757016203481,126.02,202.9,202.76,7.78]
[1757016203672,0.07,202.89,202.76,7.78]
[1757016203873,126.02,202.9,202.76,7.78]
[1757016204177,0.07,202.89,202.76,7.78]
[1757016204779,115.89,202.92,202.76,7.78]
[1757016205379,0.07,202.92,202.76,7.78]
[1757016208283,125.46,202.93,202.76,7.78]
[1757016208485,0.07,202.92,202.76,7.78]
[1757016209487,0.07,202.92,202.83,7.8]
[1757016209885,0.07,202.92,202.85,3.06281913]
[1757016210481,0.07,202.92,202.86,7.8]
[1757016211786,0.07,202.96,202.88,3.06281913]
[1757016212090,317.88,202.97,202.89,7.8]
[1757016213492,317.88,202.97,202.88,3.06281913]
[1757016213493,0.07,203.0,202.91,10.86281913]
[1757016214886,45.70281913,203.01,202.88,3.06281913]
[1757016215091,0.07,203.0,202.88,10.86281913]
[1757016215292,0.07,203.0,202.88,7.8]
[1757016215891,45.70281913,203.01,202.88,7.8]
[1757016216087,0.07,203.0,202.88,7.8]
[1757016217892,42.64,203.01,202.88,7.8]
[1757016218086,0.07,202.97,202.88,7.8]
[1757016221085,3.06281913,202.96,202.88,7.8]
[1757016224598,3.13281913,202.97,202.88,7.8]
[1757016225098,50.15281913,202.97,202.88,7.8]
[1757016225297,3.13281913,202.97,202.88,7.8]
[1757016225499,94.81281913,202.97,202.88,7.8]
[1757016225792,0.07,202.96,202.88,7.8]
[1757016225993,94.74281913,202.97,202.84,3.06281913]
[1757016226195,3.13281913,202.91,202.79,3.06281913]
[1757016226399,3.13281913,202.91,202.8,7.8]
[1757016226995,3.13281913,202.88,202.8,7.8]
[1757016228101,0.07,202.88,202.8,7.8]
[1757016230002,3.06281913,202.86,202.8,7.8]
[1757016230402,3.06281913,202.87,202.8,7.8]
[1757016230597,3.06281913,202.91,202.8,7.8]
[1757016230798,45.46,202.9,202.8,7.8]
[1757016231205,3.06281913,202.91,202.8,7.8]
[1757016231502,0.04,202.9,202.8,7.8]
[1757016231707,3.06281913,202.89,202.8,7.8]
[1757016232507,0.04,202.9,202.8,7.8]
[1757016232707,3.06281913,202.89,202.8,7.8]
[1757016233804,0.04,202.9,202.8,10.86281913]
[1757016234005,5.23432152,202.94,202.73,5.2897363]
[1757016234006,39.68,202.93,202.81,7.34]
[1757016234208,39.68,202.93,202.84,7.34]
[1757016235006,3.10281913,202.94,202.84,7.34]
[1757016235205,0.04,202.94,202.84,7.34]
[1757016237209,320.60281913,202.95,202.84,7.34]
[1757016237410,3.06281913,202.95,202.84,7.34]
[1757016238211,125.28,202.96,202.84,7.34]
[1757016238818,125.28,202.96,202.87,7.34]
[1757016239710,3.10281913,202.97,202.87,7.34]
[1757016239910,65.02281913,202.97,202.87,7.34]
[1757016240113,64.98281913,202.97,202.87,7.34]
[1757016240319,0.04,202.96,202.87,7.34]
[1757016240710,5.23432152,202.98,202.89,3.06281913]
[1757016241014,5.27432152,202.99,202.9,7.34]
[1757016241209,0.04,202.99,202.9,7.34]
[1757016241510,0.0320055,202.97,202.9,7.34]
[1757016241915,0.0320055,202.97,202.91,0.03697195]
[1757016242415,0.0320055,202.97,202.92,7.34]
[1757016243014,0.0320055,202.97,202.92,3.06281913]
[1757016243217,0.0320055,202.97,202.93,7.34]
[1757016243416,0.0320055,202.97,202.92,3.06281913]
[1757016244118,0.0320055,202.97,202.93,7.34]
[1757016244316,0.0320055,202.97,202.96,7.34]
[1757016249444,0.0320055,202.97,202.96,9.29785446]
[1757016249624,0.0320055,202.97,202.96,7.34]
[1757016249824,0.0320055,202.97,202.95,1.95785446]
[1757016250124,0.0320055,202.97,202.96,7.34]
[1757016252824,0.0320055,202.97,202.95,9.29785446]
[1757016253423,0.0320055,202.97,202.96,7.34]
[1757016253825,0.0320055,202.97,202.91,0.03697195]
[1757016253826,0.0320055,202.97,202.93,9.29785446]
[1757016254121,0.0720055,202.97,202.91,0.03697195]
[1757016254920,0.04,202.95,202.91,0.03697195]
[1757016255118,0.04,202.95,202.91,7.37697195]
[1757016255426,1.95785446,202.96,202.92,7.34]
[1757016255626,1.99785446,202.96,202.92,7.34]
[1757016255826,1.95785446,202.96,202.91,0.03697195]
[1757016256022,1.95785446,202.94,202.91,0.03697195]
[1757016256320,0.04,202.93,202.91,0.03697195]
[1757016258229,1.95785446,202.94,202.91,0.03697195]
[1757016258430,1.99785446,202.94,202.91,0.03697195]
[1757016258632,1.95785446,202.96,202.92,7.76]
[1757016259330,1.99785446,202.96,202.92,7.76]
[1757016259730,0.04,202.93,202.91,0.03697195]
[1757016260032,1.95785446,202.94,202.91,0.03697195]
[1757016260233,0.0320055,202.97,202.91,0.03697195]
[1757016260534,1.95785446,202.96,202.92,7.76]
[1757016260730,0.0320055,202.97,202.91,7.79697195]
[1757016261030,0.0320055,202.97,202.92,1.95785446]
[1757016261427,0.0320055,202.97,202.93,7.76]
[1757016261630,0.0320055,202.97,202.94,1.95785446]
[1757016261833,0.0320055,202.97,202.95,7.76]
[1757016262737,0.0320055,202.97,202.94,1.95785446]
[1757016263435,0.0320055,202.97,202.95,7.76]
[1757016263636,0.0320055,202.97,202.94,1.95785446]
[1757016263835,0.0320055,202.97,202.95,7.76]
[1757016264336,0.0320055,202.97,202.96,9.71785446]
[1757016265333,0.0320055,202.97,202.96,7.76]
[1757016267947,442.68,203.04,202.96,9.71785446]
[1757016267948,317.56,203.04,202.96,9.71785446]
[1757016268444,1.95785446,203.03,202.96,9.71785446]
[1757016269341,1.95785446,203.03,202.97,0.03399137]
[1757016270431,1.95785446,203.03,202.97,1.99184583]
[1757016271033,125.15,203.1,203.01,1.95785446]
[1757016271237,1.95785446,203.08,203.01,1.95785446]
[1757016271433,125.15,203.1,203.02,7.76]
[1757016271647,127.10785446,203.1,203.03,1.95785446]
[1757016271840,2.02785446,203.1,203.03,1.95785446]
[1757016272040,125.08,203.11,203.04,7.76]
[1757016272241,1.95785446,203.12,203.04,7.76]
[1757016272537,1.95785446,203.1,203.06,0.03751133]
[1757016272740,0.07,203.09,203.06,0.03751133]
[1757016273141,2.02785446,203.09,203.06,0.03751133]